bitfinex/quotes_ETHUSD_20241225
["timestamp","ask_amount","ask_price","bid_price","bid_amount"]
[1735163161184,2.30941,3464.1,3463.8,3.54017912]
[1735163162015,2.30917,3464.5,3463.8,3.54017912]
[1735163162189,2.3092,3464.4,3463.8,3.54017912]
[1735163162527,5.30904,3464.7,3463.8,3.54017912]
[1735163163318,0.8269,3464.8,3463.8,3.54017912]
[1735163163630,2.30935,3464.2,3463.8,3.54017912]
[1735163164341,0.230935,3464.2,3463.8,3.54017912]
[1735163164641,2.30928,3464.3,3463.8,3.54017912]
[1735163164992,2.30936,3464.2,3463.8,3.54017912]
[1735163165185,2.30913,3464.5,3463.8,3.54017912]
[1735163165389,2.30939,3464.2,3463.8,3.54017912]
[1735163171067,2.30948,3464.0,3463.8,3.54017912]
[1735163171272,3.367378,3463.9,3463.8,3.54017912]
[1735163172693,2.540478,3463.9,3463.8,3.54017912]
[1735163173237,3.367378,3463.9,3463.8,3.54017912]
[1735163177955,2.540478,3463.9,3463.8,3.54017912]
[1735163178096,2.30953,3463.9,3463.8,3.54017912]
[1735163181209,2.4548413,3464.6,3463.8,3.54017912]
[1735163181210,2.30941,3464.1,3463.8,3.54017912]
[1735163181917,2.30934,3464.2,3463.8,3.54017912]
[1735163183127,0.58676483,3464.4,3463.8,3.54017912]
[1735163183333,0.58676483,3464.4,3463.9,0.7513]
[1735163183663,2.30919,3464.5,3463.9,0.7513]
[1735163185880,2.30919,3464.5,3463.9,1.18044791]
[1735163187828,2.30919,3464.5,3464.0,0.7513]
[1735163188233,2.30921,3464.4,3464.0,0.7513]
[1735163188470,2.30922,3464.4,3464.0,0.7513]
[1735163189474,0.5820832,3464.6,3464.0,0.7513]
[1735163189677,1.20159391,3465.0,3464.5,0.7815]
[1735163189846,1.20159391,3465.0,3464.6,0.02886129]
[1735163190052,1.20159391,3465.0,3464.7,3.45497933]
[1735163190245,1.20159391,3465.0,3464.8,0.7815]
[1735163192137,2.88390517,3465.8,3464.8,0.7815]
[1735163192477,2.88390517,3465.8,3464.7,4.98245933]
[1735163192478,2.88390517,3465.8,3465.1,0.7815]
[1735163193247,2.30827,3465.8,3465.1,0.7815]
[1735163194544,0.8109,3465.7,3464.8,0.7815]
[1735163194751,2.30875,3465.1,3464.8,0.7815]
[1735163194997,2.3084,3465.6,3464.8,0.7815]
[1735163195199,2.3086,3465.3,3464.8,0.7815]
[1735163195383,2.30846,3465.6,3464.9,0.7815]
[1735163195585,2.88877656,3465.9,3464.9,0.7815]
[1735163195894,3.0,3466.1,3464.9,0.7815]
[1735163196077,0.8109,3466.2,3464.9,0.7815]
[1735163196393,3.0,3466.0,3465.0,0.7815]
[1735163196780,2.30826,3465.9,3465.0,0.81035657]
[1735163197088,4.08073593,3466.1,3465.2,0.7815]
[1735163197247,4.08073593,3466.1,3465.3,0.34549793]
[1735163197449,4.08073593,3466.1,3465.4,0.7815]
[1735163197749,2.87914202,3466.1,3465.4,0.7815]
[1735163197946,2.3082,3465.9,3465.4,0.7815]
[1735163198182,2.3082,3465.9,3465.4,1.16154773]
[1735163198385,2.30827,3465.8,3465.4,1.16154773]
[1735163198595,2.30827,3465.8,3465.4,0.7815]
[1735163199877,2.88339945,3466.3,3465.4,0.7815]
[1735163200198,2.30814,3466.0,3465.4,0.7815]
[1735163200790,0.57541945,3466.3,3465.4,0.7815]
[1735163200990,2.30826,3465.9,3465.4,0.7815]
[1735163201295,2.30826,3465.9,3465.4,1.12699793]
[1735163201952,2.30805,3466.2,3465.5,0.7815]
[1735163202152,0.8109,3466.6,3465.5,0.7815]
[1735163202495,1.20159391,3466.8,3466.3,2.67347933]
[1735163202721,1.20159391,3466.8,3466.4,0.81034411]
[1735163202895,1.20159391,3466.8,3466.4,0.7815]
[1735163203617,2.30714,3467.5,3466.6,0.7815]
[1735163203783,2.01249391,3467.8,3466.7,0.02884171]
[1735163203961,2.30701,3467.7,3467.0,0.7815]
[1735163204368,2.30701,3467.7,3467.1,35.0]
[1735163205214,0.8109,3468.1,3467.1,35.0]
[1735163205417,2.30709,3467.6,3467.1,35.0]
[1735163206638,0.57114468,3467.9,3467.1,35.0]
[1735163206789,2.30693,3467.9,3467.2,2.84628631]
[1735163206991,2.30697,3467.8,3467.2,2.84628631]
[1735163207236,2.30697,3467.8,3467.0,0.7815]
[1735163207440,2.30697,3467.8,3467.3,35.0]
[1735163207738,3.0,3468.1,3467.4,0.7553]
[1735163207951,2.30713,3467.5,3467.4,0.7553]
[1735163208235,0.1421633,3468.6,3467.0,0.7553]
[1735163208236,0.8185,3468.0,3467.0,0.7553]
[1735163208788,2.3074,3467.1,3467.0,0.7553]
[1735163209090,2.30719,3467.5,3466.7,0.7553]
[1735163209287,3.15529688,3467.9,3466.7,0.7553]
[1735163209487,2.30788,3466.4,3466.3,0.7553]
[1735163210299,0.8185,3467.0,3465.8,0.7553]
[1735163210499,0.312586,3466.9,3465.8,0.7553]
[1735163210703,2.30807,3466.1,3465.8,0.7553]
[1735163213932,2.30807,3466.1,3465.9,35.0]
[1735163214526,5.30753,3466.9,3465.9,35.0]
[1735163214838,2.30787,3466.4,3465.9,35.0]
[1735163215132,2.30781,3466.5,3466.0,3.60158631]
[1735163215333,2.3074,3467.1,3466.0,3.60158631]
[1735163215507,2.30787,3466.4,3466.0,0.7553]
[1735163215701,2.30787,3466.4,3466.1,35.0]
[1735163216511,2.30761,3466.8,3466.1,37.67347933]
[1735163217541,2.30766,3466.8,3466.1,37.67347933]
[1735163218517,2.30771,3466.7,3466.1,37.67347933]
[1735163218715,2.30771,3466.7,3466.2,2.84628631]
[1735163219174,2.30747,3467.0,3466.0,0.7553]
[1735163219472,2.3078,3466.5,3466.1,35.0]
[1735163223569,2.30747,3467.0,3466.1,35.0]
[1735163223766,2.30768,3466.7,3466.1,35.0]
[1735163224143,2.30774,3466.6,3466.1,35.0]
[1735163224344,2.3078,3466.5,3466.2,2.84628631]
[1735163224893,2.3078,3466.5,3466.0,0.7553]
[1735163225095,2.3078,3466.5,3466.3,35.0]
[1735163225601,0.7755,3467.6,3466.4,0.822]
[1735163225741,2.3074,3467.1,3466.5,0.02884345]
[1735163225937,2.3074,3467.1,3466.6,0.35243228]
[1735163226139,2.3074,3467.1,3466.7,35.822]
[1735163227199,3.0,3467.5,3466.7,35.822]
[1735163227549,2.30723,3467.4,3466.7,35.822]
[1735163227770,2.30723,3467.4,3466.9,0.822]
[1735163231362,2.30723,3467.4,3467.0,35.0]
[1735163232260,2.30724,3467.4,3466.9,0.822]
[1735163232856,2.30724,3467.4,3467.0,35.0]
[1735163233359,2.3074,3467.1,3467.0,35.0]
[1735163233703,0.23074,3467.1,3466.5,3.49065801]
[1735163233862,2.30773,3466.6,3466.5,3.49065801]
[1735163234202,3.08323,3466.6,3466.5,3.49065801]
[1735163238021,6.08323,3466.6,3466.5,3.49065801]
[1735163238223,6.08323,3466.6,3466.1,35.0]
[1735163238372,2.308,3466.2,3466.1,35.0]
[1735163239221,3.7755,3466.6,3465.2,0.7929]
[1735163239447,0.7926,3465.7,3464.7,0.7929]
[1735163239748,2.3086,3465.3,3464.8,35.0]
[1735163240453,2.30873,3465.2,3464.8,35.0]
[1735163241706,2.30846,3465.5,3464.8,35.0]
[1735163242445,2.30886,3464.9,3464.8,35.0]
[1735163242766,2.539746,3464.9,3464.8,35.0]
[1735163242926,2.539746,3464.9,3464.4,3.49065801]
[1735163242927,2.30913,3464.5,3464.4,3.49065801]
[1735163243128,2.30913,3464.5,3464.0,1.20812626]
[1735163243331,2.30913,3464.5,3464.1,35.0]
[1735163244133,2.309,3464.8,3464.1,35.0]
[1735163244350,0.7926,3465.0,3464.2,2.84628631]
[1735163244550,2.30903,3464.7,3464.0,1.20812626]
[1735163244719,2.30903,3464.7,3463.9,3.46637933]
[1735163244918,2.30903,3464.7,3464.1,35.0]
[1735163246153,2.30916,3464.5,3463.9,3.46637933]
[1735163246319,2.30916,3464.5,3463.9,0.7929]
[1735163246721,2.30916,3464.5,3464.4,35.0]
[1735163247065,2.30899,3464.8,3464.4,35.0]
[1735163247370,2.30901,3464.7,3464.4,35.0]
[1735163248766,2.30907,3464.6,3464.4,35.0]
[1735163250361,2.30913,3464.5,3464.4,35.0]
[1735163254607,2.30896,3464.8,3464.4,35.0]
[1735163254741,2.30866,3465.2,3464.5,0.8129]
[1735163254936,2.30881,3465.0,3464.5,0.8129]
[1735163255191,2.30887,3464.9,3464.5,0.8129]
[1735163256898,2.3087,3465.2,3464.5,0.8129]
[1735163257044,2.3087,3465.2,3464.5,3.65918631]
[1735163257246,2.3087,3465.2,3464.5,0.8129]
[1735163257486,2.30873,3465.1,3464.6,35.0]
[1735163261041,2.30855,3465.4,3464.6,35.0]
[1735163261248,2.30855,3465.4,3464.8,0.8129]
[1735163261735,2.30806,3466.1,3465.0,2.67347933]
[1735163261892,0.7545,3466.3,3465.3,2.67347933]
[1735163262209,2.30815,3466.0,3465.3,2.67347933]
[1735163262687,1.20159391,3466.8,3465.4,0.84175385]
[1735163262688,2.308,3466.2,3465.4,0.84175385]
[1735163263032,2.30772,3466.7,3465.7,0.8129]
[1735163263304,0.7545,3466.4,3465.2,0.8129]
[1735163263474,2.30854,3465.4,3465.2,0.8129]
[1735163263662,0.7545,3466.4,3465.2,0.8129]
[1735163263663,2.30835,3465.7,3465.2,0.8129]
[1735163265771,2.30819,3466.0,3465.2,0.8129]
[1735163266197,2.30821,3465.9,3465.2,0.8129]
[1735163266403,2.30821,3465.9,3465.2,1.16442346]
[1735163266971,2.30825,3465.9,3465.2,1.19327814]
[1735163267475,2.30808,3466.1,3465.2,1.19327814]
[1735163267672,0.7545,3466.4,3465.3,3.44887933]
[1735163267903,0.7545,3466.4,3465.3,0.7754]
[1735163267904,2.308,3466.2,3465.3,0.7754]
[1735163268106,2.30822,3465.9,3465.3,0.7754]
[1735163268876,0.41808814,3466.3,3465.3,0.7754]
[1735163269079,2.3083,3465.8,3465.3,0.7754]
[1735163270376,2.30835,3465.7,3465.3,0.7754]
[1735163271097,2.30821,3465.9,3465.3,0.7754]
[1735163273235,3.0,3466.5,3465.3,0.7754]
[1735163273531,0.833,3466.2,3465.3,0.7754]
[1735163273842,2.30852,3465.5,3465.0,0.7754]
[1735163274347,2.30835,3465.7,3465.0,0.7754]
[1735163274680,2.30824,3465.9,3465.1,0.02885632]
[1735163275036,2.30885,3465.0,3464.9,0.7754]
[1735163275194,0.833,3465.9,3463.8,1.20812626]
[1735163275195,2.30896,3464.8,3464.5,0.7754]
[1735163275399,2.30866,3465.2,3464.1,0.7754]
[1735163275400,3.58666711,3465.2,3464.1,0.7754]
[1735163275633,2.30916,3464.5,3464.1,0.7754]
[1735163278328,3.14202,3464.7,3464.0,35.0]
[1735163278848,2.30933,3464.3,3464.0,35.0]
[1735163281330,2.30914,3464.5,3464.0,35.0]
[1735163281632,0.7605,3465.0,3463.8,0.7754]
[1735163281831,0.5548761,3464.9,3463.8,0.7754]
[1735163282036,0.5548761,3464.9,3464.4,35.0]
[1735163283421,2.30906,3464.7,3464.4,35.0]
[1735163285272,2.30909,3464.6,3464.4,35.0]
[1735163293094,3.5548761,3464.9,3464.4,35.0]
[1735163293253,2.30913,3464.5,3464.4,35.0]
[1735163294659,2.3094,3464.1,3463.4,0.7804]
[1735163294873,2.3094,3464.1,3463.5,0.64743078]
[1735163295061,2.3094,3464.1,3463.5,35.64743078]
[1735163296194,2.3094,3464.1,3463.6,0.7804]
[1735163296803,2.30909,3464.6,3463.8,0.7804]
[1735163297114,2.30881,3465.0,3463.7,37.67347933]
[1735163297115,2.30881,3465.0,3464.0,2.67347933]
[1735163297257,2.30881,3465.0,3464.2,0.7804]
[1735163297620,1.20159391,3465.1,3464.4,0.7804]
[1735163297758,4.6992739,3465.4,3464.4,0.7804]
[1735163297759,1.20159391,3465.4,3464.4,0.7804]
[1735163298106,2.30868,3465.2,3464.4,0.7804]
[1735163298663,1.20159391,3465.4,3464.5,35.0]
[1735163298859,2.3086,3465.3,3464.6,3.62668631]
[1735163299491,2.2086,3465.3,3464.7,0.02885921]
[1735163299660,2.2086,3465.3,3464.7,0.0288592]
[1735163300419,2.2086,3465.3,3464.6,3.62668631]
[1735163301153,0.7749,3465.8,3464.7,0.7804]
[1735163301448,2.30835,3465.7,3464.9,0.7804]
[1735163302430,2.30841,3465.6,3464.9,0.7804]
[1735163302945,2.30819,3466.0,3465.1,0.7804]
[1735163302946,3.0,3466.0,3465.1,0.7804]
[1735163303147,2.30843,3465.6,3465.1,0.7804]
[1735163304233,2.30843,3465.6,3465.2,35.0]
[1735163307286,2.30843,3465.6,3465.2,37.84628631]
[1735163309897,1.80200348,3466.5,3465.5,0.7835]
[1735163310186,4.10983348,3466.5,3465.9,0.7835]
[1735163310478,4.10983348,3466.5,3466.0,35.0]
[1735163310788,1.80200348,3466.5,3466.0,35.0]
[1735163310979,2.30767,3466.7,3466.0,35.0]
[1735163311154,2.30767,3466.7,3466.1,3.62978631]
[1735163311878,1.20159391,3467.0,3466.1,3.62978631]
[1735163311879,1.20159391,3467.0,3466.1,5.51976564]
[1735163312101,1.20159391,3467.0,3466.5,0.7835]
[1735163312398,0.7779,3467.0,3466.2,0.7835]
[1735163312560,0.25699171,3466.9,3466.2,0.7835]
[1735163312766,0.25699171,3466.9,3466.0,35.7835]
[1735163312979,2.3076,3466.8,3466.0,35.7835]
[1735163313492,2.30789,3466.4,3466.0,35.7835]
[1735163313800,0.7779,3467.0,3466.0,35.7835]
[1735163314004,0.27129346,3466.9,3466.0,35.7835]
[1735163314157,2.30799,3466.3,3466.0,35.0]
[1735163314353,2.30801,3466.2,3465.7,0.7835]
[1735163314917,2.30801,3466.2,3465.8,35.0]
[1735163316793,2.30769,3466.7,3465.8,35.0]
[1735163317133,2.30788,3466.4,3465.8,37.84628631]
[1735163319537,2.30775,3466.6,3465.8,37.84628631]
[1735163320127,0.7779,3467.0,3465.9,0.7835]
[1735163320420,2.30767,3466.7,3465.9,0.7835]
[1735163320924,2.30767,3466.7,3466.0,35.0]
[1735163321733,3.08537,3467.0,3466.0,37.84628631]
[1735163321928,0.7779,3467.0,3466.0,35.0]
[1735163322083,2.308,3466.2,3466.0,35.0]
[1735163323240,0.7779,3466.5,3466.0,35.0]
[1735163323241,2.30806,3466.1,3466.0,35.0]
[1735163323404,0.7779,3466.5,3465.3,0.7835]
[1735163323405,2.30827,3465.8,3465.3,0.7835]
[1735163323734,0.308559,3466.4,3465.3,0.7835]
[1735163323938,2.30813,3466.1,3465.4,35.0]
[1735163324598,2.30813,3466.1,3465.5,0.7835]
[1735163325002,2.30816,3466.0,3465.5,0.7835]
[1735163325204,2.30816,3466.0,3465.6,35.0]
[1735163325868,0.88195971,3466.4,3465.6,35.0]
[1735163325983,2.30827,3465.8,3465.6,35.0]
[1735163326185,2.30833,3465.7,3465.6,35.0]
[1735163329305,2.30833,3465.7,3465.2,4.28809452]
[1735163329790,2.30833,3465.7,3465.3,35.0]
[1735163330125,2.30833,3465.7,3465.3,37.84628631]
[1735163331594,0.8234,3465.9,3465.3,37.84628631]
[1735163331799,2.30823,3465.9,3465.3,37.84628631]
[1735163331990,2.30823,3465.9,3465.4,0.8015]
[1735163332297,2.30803,3466.2,3465.4,0.8015]
[1735163332593,2.30803,3466.2,3465.5,36.06093602]
[1735163333489,2.30788,3466.4,3465.6,0.83035173]
[1735163333896,2.30788,3466.4,3465.6,0.83035126]
[1735163334207,2.30788,3466.4,3465.8,0.8015]
[1735163335087,2.30788,3466.4,3465.9,35.0]
[1735163335287,2.30788,3466.4,3465.9,37.84628631]
[1735163335521,0.56872831,3466.5,3465.9,37.84628631]
[1735163337283,0.56872831,3466.5,3466.0,0.8015]
[1735163337988,0.56872831,3466.5,3466.1,35.0]
[1735163338798,3.0,3467.0,3466.1,35.0]
[1735163338997,2.30754,3466.9,3466.2,3.64778631]
[1735163339408,3.0,3467.1,3466.2,0.8015]
[1735163339579,0.8234,3467.1,3466.3,35.0]
[1735163340098,3.58542868,3467.0,3466.3,35.0]
[1735163340315,3.58542868,3467.0,3465.7,0.7931]
[1735163340316,2.30807,3466.1,3465.7,0.7931]
[1735163340458,2.30807,3466.1,3465.7,0.9785036]
[1735163340882,2.30807,3466.1,3465.8,35.0]
[1735163341819,2.30789,3466.4,3465.8,35.0]
[1735163342034,2.30774,3466.6,3465.8,35.0]
[1735163342320,2.3078,3466.5,3465.8,35.0]
[1735163342522,2.3078,3466.5,3465.9,2.84628631]
[1735163342924,1.20159391,3466.7,3466.0,0.7931]
[1735163343103,1.20159391,3466.7,3466.1,35.0]
[1735163343266,1.80200348,3466.9,3466.2,0.7931]
[1735163343267,1.20159391,3466.9,3466.2,0.7931]
[1735163343481,2.30774,3466.6,3466.2,0.7931]
[1735163343682,2.30774,3466.6,3465.8,0.7931]
[1735163343683,0.7659,3466.5,3465.8,0.7931]
[1735163343916,2.30817,3466.0,3465.4,0.7931]
[1735163344138,2.30817,3466.0,3465.5,35.0]
[1735163344905,2.30802,3466.2,3465.5,35.0]
[1735163345101,2.30802,3466.2,3465.6,2.84628631]
[1735163345447,2.30809,3466.1,3465.6,2.84628631]
[1735163345647,2.30809,3466.1,3465.4,0.7931]
[1735163346193,1.96749391,3466.5,3465.4,0.7931]
[1735163346499,2.30815,3466.0,3465.4,0.7931]
[1735163347541,2.30801,3466.2,3465.4,0.7931]
[1735163348735,2.30801,3466.2,3465.5,0.02885149]
[1735163349046,2.30801,3466.2,3465.6,0.7931]
[1735163349337,2.30801,3466.2,3465.7,0.02885149]
[1735163349539,1.20159391,3466.6,3465.8,0.7931]
[1735163349744,3.50936391,3466.6,3465.8,0.7931]
[1735163350326,2.30777,3466.6,3465.8,0.7931]
[1735163352243,2.30781,3466.5,3465.8,0.7931]
[1735163352455,2.30801,3466.2,3465.8,0.7931]
[1735163352630,2.30835,3465.7,3465.5,1.20812626]
[1735163353329,2.30835,3465.7,3465.4,1.20812626]
[1735163354046,2.30846,3465.5,3465.4,1.20812626]
[1735163354193,3.07436,3465.5,3465.4,1.20812626]
[1735163354394,3.07436,3465.5,3465.2,4.28809452]
[1735163354395,0.7659,3465.5,3465.2,4.28809452]
[1735163354893,2.30838,3465.7,3465.2,4.28809452]
[1735163355096,2.3084,3465.6,3465.2,4.28809452]
[1735163356147,4.27575391,3465.9,3465.2,4.71690397]
[1735163356311,3.50985391,3465.9,3465.3,0.8197]
[1735163356723,1.20159391,3465.9,3465.6,2.67347933]
[1735163357045,1.20159391,3465.9,3465.8,0.8197]
[1735163357211,1.20159391,3465.9,3465.8,1.16901793]
[1735163357616,2.30788,3466.4,3465.8,1.16901793]
[1735163358158,1.20159391,3466.5,3465.8,1.16901793]
[1735163358512,1.20159391,3466.5,3466.0,0.8197]
[1735163359146,1.20159391,3466.6,3466.0,0.8197]
[1735163359295,1.20159391,3466.6,3466.1,0.38424973]
[1735163360354,2.30767,3466.7,3466.1,0.38424973]
[1735163362682,1.20159391,3467.0,3466.2,0.8197]
[1735163363671,2.30763,3466.8,3466.2,0.8197]
[1735163364229,2.30763,3466.8,3466.2,1.20744291]
[1735163364471,2.30763,3466.8,3466.2,0.8197]
[1735163365247,0.7769,3467.0,3465.7,1.20812626]
[1735163365450,1.97849391,3467.0,3465.8,0.8197]
[1735163366167,2.30777,3466.6,3465.8,0.8197]
[1735163367424,1.20159391,3466.9,3466.0,0.8197]
[1735163367584,1.20159391,3466.9,3466.1,0.40431793]
[1735163368705,2.30752,3467.0,3466.1,0.40431793]
[1735163370075,2.30752,3467.0,3466.2,0.7816]
[1735163372100,3.0,3467.1,3466.2,0.7816]
[1735163372305,2.30779,3466.6,3466.2,0.7816]
[1735163372908,3.0,3466.4,3465.6,1.20812626]
[1735163373109,5.3086,3465.3,3465.2,5e-07]
[1735163373308,5.3086,3465.3,3463.7,0.58421683]
[1735163373309,0.8108,3465.1,3465.0,1.82953977]
[1735163373604,3.0,3465.0,3464.7,0.74095225]
[1735163373910,2.67347933,3464.8,3464.7,0.74095225]
[1735163374078,8.79320933,3464.8,3464.7,2.25e-06]
[1735163374564,4.98267933,3464.4,3464.3,4.23174763]
[1735163375115,2.30962,3463.8,3462.5,3.0]
[1735163375271,2.30962,3463.8,3462.5,3.75475431]
[1735163375477,2.30962,3463.8,3462.6,0.55]
[1735163376058,2.30962,3463.8,3462.8,0.55]
[1735163376274,2.30962,3463.8,3462.9,0.18816]
[1735163377275,1.19563814,3464.0,3462.9,0.18816]
[1735163377461,2.30968,3463.7,3462.7,0.7816]
[1735163378607,1.80200348,3464.1,3462.7,0.7816]
[1735163378608,2.30973,3463.6,3462.7,0.7816]
[1735163389534,0.8108,3464.1,3462.7,0.7816]
[1735163389685,2.30982,3463.5,3462.7,0.7816]
[1735163393044,0.8108,3464.1,3462.8,0.55]
[1735163393186,4.76969167,3464.5,3463.1,0.7673]
[1735163393187,3.0,3464.4,3463.1,0.7673]
[1735163393389,5.01843814,3464.6,3463.1,0.7673]
[1735163394133,5.59473372,3464.6,3463.1,0.7673]
[1735163394341,2.30926,3464.3,3463.1,0.7673]
[1735163395233,2.30926,3464.3,3463.1,3.07736]
[1735163395384,2.30926,3464.3,3463.2,0.39497079]
[1735163396006,2.30926,3464.3,3463.3,35.0]
[1735163397647,2.3094,3464.1,3463.3,35.0]
[1735163398174,5.67347933,3464.5,3463.1,0.7673]
[1735163398476,3.0,3463.9,3462.5,0.7673]
[1735163398618,2.31003,3463.2,3462.6,35.0]
[1735163400266,3.0,3463.9,3462.6,35.0]
[1735163400471,2.31009,3463.1,3462.6,35.0]
[1735163401369,0.576135,3463.7,3462.6,35.0]
[1735163401567,2.3099,3463.4,3462.6,37.84628631]
[1735163401773,2.31002,3463.2,3462.6,35.0]
[1735163405078,2.30984,3463.5,3462.5,0.7673]
[1735163405301,2.30984,3463.5,3462.6,3.45687933]
[1735163405661,2.30967,3463.7,3463.1,35.0]
[1735163406382,2.30979,3463.6,3463.1,35.0]
[1735163408763,0.8228,3464.0,3463.2,0.7834]
[1735163409105,1.19563814,3464.3,3463.2,3.45687933]
[1735163409275,2.30934,3464.2,3463.2,3.45687933]
[1735163409674,1.19563814,3464.3,3463.2,2.67347933]
[1735163409877,1.19563814,3464.3,3463.3,0.772]
[1735163410077,1.19563814,3464.3,3463.5,0.772]
[1735163410459,2.30921,3464.4,3463.5,0.772]
[1735163410661,2.30908,3464.6,3463.5,2.67347933]
[1735163410979,2.89108736,3464.6,3463.6,0.772]
[1735163411182,2.30908,3464.6,3463.6,0.772]
[1735163411380,2.30908,3464.6,3463.8,0.772]
[1735163412857,2.30908,3464.6,3463.9,35.0]
[1735163413861,2.30894,3464.8,3463.9,35.0]
[1735163414156,2.30907,3464.6,3463.9,35.0]
[1735163415958,4.08940096,3464.8,3463.9,35.0]
[1735163416103,2.30901,3464.7,3464.0,2.84628631]
[1735163416308,1.78047096,3464.8,3464.1,0.7716]
[1735163416752,1.19563814,3464.7,3464.2,35.0]
[1735163418214,2.3907339,3465.0,3464.2,35.0]
[1735163418215,1.19563814,3464.8,3464.2,35.0]
[1735163419155,1.19563814,3464.8,3464.2,37.84628631]
[1735163419462,1.19563814,3464.8,3464.3,0.7716]
[1735163419763,1.19563814,3464.6,3464.3,0.7716]
[1735163420920,1.19563814,3464.7,3464.3,0.7716]
[1735163422826,1.19563814,3464.7,3464.4,2.67347933]
[1735163423022,1.19563814,3464.7,3464.6,0.7716]
[1735163423855,1.19563814,3464.7,3464.6,35.7716]
[1735163424036,1.49167147,3464.8,3464.6,35.7716]
[1735163425879,3.50417814,3465.4,3464.6,35.7716]
[1735163426079,3.50417814,3465.4,3464.7,2.84628631]
[1735163426564,3.50417814,3465.4,3464.6,0.7716]
[1735163426863,3.50417814,3465.4,3464.8,35.0]
[1735163427070,2.30854,3465.4,3464.8,35.0]
[1735163429486,2.30867,3465.2,3464.8,35.0]
[1735163430081,1.19563814,3465.5,3464.8,35.0]
[1735163430252,2.30874,3465.1,3464.8,35.0]
[1735163430451,2.30874,3465.1,3464.6,0.7716]
[1735163430890,2.30874,3465.1,3464.7,35.0]
[1735163432257,2.30873,3465.1,3464.7,37.84628631]
[1735163433657,1.19563814,3465.5,3464.7,37.84628631]
[1735163433896,1.19563814,3465.5,3464.9,0.7799]
[1735163434188,1.19563814,3465.5,3465.1,2.67347933]
[1735163434483,1.19563814,3465.5,3465.2,35.7799]
[1735163434686,1.19563814,3465.5,3465.3,2.84628631]
[1735163434983,1.19563814,3465.9,3465.3,2.84628631]
[1735163435195,1.19563814,3465.9,3465.2,0.7799]
[1735163435421,1.19563814,3465.9,3465.4,35.0]
[1735163436289,2.3907339,3466.2,3465.4,35.0]
[1735163436290,2.30834,3465.7,3465.4,35.0]
[1735163436486,3.08114,3465.7,3465.4,35.0]
[1735163437267,3.08114,3465.7,3464.9,0.7799]
[1735163437919,1.96843814,3466.0,3465.0,35.37799]
[1735163438119,1.19563814,3466.0,3465.1,0.7799]
[1735163438270,1.19563814,3466.0,3465.1,5.76208933]
[1735163438707,1.19563814,3466.0,3465.2,35.0]
[1735163438972,1.19563814,3466.1,3465.2,35.0]
[1735163439164,1.19563814,3466.1,3465.3,2.84628631]
[1735163439386,3.50370814,3466.1,3465.3,2.84628631]
[1735163439597,3.50370814,3466.1,3465.1,5.76208933]
[1735163439916,3.50370814,3466.1,3465.4,35.0]
[1735163440085,3.50370814,3466.1,3465.5,0.02885279]
[1735163440287,2.30807,3466.1,3465.4,35.0]
[1735163440621,2.30807,3466.1,3465.5,0.48632116]
[1735163441122,2.30807,3466.1,3465.5,0.48632054]
[1735163441411,2.30807,3466.1,3465.5,0.45746802]
[1735163441773,4.27637814,3466.3,3465.5,0.45746802]
[1735163443125,1.96843814,3466.3,3465.6,0.80875189]
[1735163443284,1.96843814,3466.3,3465.7,2.84628631]
[1735163443487,1.96843814,3466.3,3465.8,0.02885029]
[1735163443831,2.53505636,3466.5,3465.6,0.7799]
[1735163443975,2.53505636,3466.5,3465.9,35.0]
[1735163444383,1.19563814,3466.5,3465.9,35.0]
[1735163444582,1.19563814,3466.5,3466.0,2.84628631]
[1735163444782,4.27604814,3466.8,3466.0,2.84628631]
[1735163445083,0.58357981,3466.7,3466.1,0.8155]
[1735163446913,0.7846,3467.1,3466.2,2.30799]
[1735163447628,0.58799749,3466.9,3466.3,2.67347933]
[1735163447841,3.09186,3467.4,3466.6,2.67347933]
[1735163447842,0.7846,3467.4,3466.6,2.67347933]
[1735163447981,1.19563814,3467.5,3467.2,0.8155]
[1735163448186,1.19563814,3467.5,3467.3,35.0]
[1735163449245,3.09135,3468.1,3467.3,35.0]
[1735163449386,0.7846,3468.1,3467.3,35.0]
[1735163449750,2.3068,3468.0,3467.3,35.0]
[1735163450300,0.7846,3468.1,3467.3,36.50475512]
[1735163450516,3.09135,3468.1,3467.3,36.50475512]
[1735163452055,0.7846,3468.1,3467.3,36.50475512]
[1735163452255,0.7846,3468.1,3466.9,0.8155]
[1735163452256,2.30701,3467.7,3466.9,0.8155]
[1735163452755,2.30701,3467.7,3466.9,35.8155]
[1735163454179,0.7846,3468.1,3467.0,0.55]
[1735163454381,0.7846,3468.1,3467.4,2.67347933]
[1735163454677,1.19563814,3468.3,3467.5,0.49807893]
[1735163454887,1.19563814,3468.3,3467.6,35.0]
[1735163456036,3.0912,3468.4,3467.6,35.0]
[1735163456437,3.0912,3468.4,3467.7,0.8155]
[1735163457084,3.0912,3468.4,3467.8,35.0]
[1735163458583,3.0912,3468.4,3467.8,37.50817749]
[1735163459189,2.3066,3468.3,3467.8,37.50817749]
[1735163460156,0.7846,3468.4,3467.5,0.49807893]
[1735163460357,2.30694,3467.8,3467.4,0.7803]
[1735163460557,3.09806,3467.7,3467.4,35.0]
[1735163460736,2.30707,3467.6,3467.1,0.7803]
[1735163461838,0.791,3467.7,3467.1,0.7803]
[1735163465161,2.30695,3467.8,3467.1,0.7803]
[1735163465563,0.791,3468.0,3467.1,0.7803]
[1735163465765,0.791,3468.0,3467.2,0.308782]
[1735163468989,3.09781,3468.0,3467.2,0.308782]
[1735163469216,2.30687,3467.9,3467.1,0.7803]
[1735163469424,2.30705,3467.7,3467.1,0.7803]